Cogmind - Beta 15 @@@ ROGUE MODE // 2025.08.23 @ 05:11:06 Player: Naughtyusername Result: Destroyed by FM-M84(R) with Subdweller Laser Performance ------------- Evolutions (0) 0 Regions Visited (2) 400 Robots Destroyed (32) 160 Value Destroyed (542) 542 Prototype IDs (0) 0 Alien Tech Used (0) 0 Bonus (0) 0 TOTAL SCORE: 1102 Bonus ------- None Cogmind --------- Core Integrity 0/250 Matter 226/300 Energy 80/100 System Corruption 4% Temperature Cool (6) Movement Treading (320) Ox2 Location -10/Subcaves Parts ------- > --- POWER (1) -------- (None) > --- PROPULSION (2) --- Light Treads Light Treads > --- UTILITY (2) ------ Huge Storage Unit Utility Shielding > --- WEAPON (2) ------- Light Assault Rifle > --- INVENTORY (25) --- Light Treads Light Treads Wheel Wheel Wheel Wheel Wheel Compact Wheel Compact Wheel Compact Wheel Small Storage Unit Huge Storage Unit Signal Interpreter Improved Terrain Scanner Utility Shielding Hacking Suite Light Assault Rifle Peak State ------------ > --- POWER ------------ Ion Engine > --- PROPULSION ------- Light Treads Compact Wheel > --- UTILITY ---------- Huge Storage Unit Improved Terrain Scanner > --- WEAPON ----------- Light Assault Rifle Light Assault Rifle > --- INVENTORY -------- Light Treads Light Treads Light Treads Light Treads Wheel Wheel Wheel Wheel Wheel Compact Wheel Compact Wheel Small Storage Unit Huge Storage Unit Signal Interpreter Utility Shielding Utility Shielding Light Armor Plating Hacking Suite Light Assault Rifle [Rating: 11] Favorites ----------- Power Ion Engine Engine Ion Engine Propulsion Light Treads Treads Light Treads Wheel Compact Wheel Utility Improved Terrain Scanner Device Improved Terrain Scanner Storage Huge Storage Unit Protection Light Armor Plating Weapon Light Assault Rifle Energy Gun Small Laser Ballistic Gun Light Assault Rifle Build | -11 -10 -10 ------- Run | Yrd Mat Sub Slots Evolved . | . . . Power . | . . . Propulsion . | . . . Utility . | . . . Weapon . | . . . Parts Attached 19 | 7 6 6 Power 2 | 1 1 . Engine 2 | 1 1 . Core . | . . . Reactor . | . . . Propulsion 7 | 2 2 3 Treads 4 | 1 1 2 Leg . | . . . Wheel 3 | 1 1 1 Hover . | . . . Flight . | . . . Utility 6 | 2 2 2 Device 2 | 1 1 . Storage 2 | 1 1 . Processor . | . . . Hackware . | . . . Protection 2 | . . 2 Artifact . | . . . Weapon 4 | 2 1 1 Energy Gun 1 | 1 . . Energy Cannon . | . . . Ballistic Gun 3 | 1 1 1 Ballistic Cannon . | . . . Launcher . | . . . Special Weapon . | . . . Impact Weapon . | . . . Slashing Weapon . | . . . Piercing Weapon . | . . . Special Melee Weapon . | . . . Unidentified Prototypes . | . . . Parts Lost 10 | . 5 5 Power 2 | . 1 1 Propulsion 3 | . 2 1 Utility 2 | . 1 1 Weapon 3 | . 1 2 Highest Loss Streak 5 | . 3 5 To Critical Strikes . | . . . Average Backups 12 | 3 12 19 Power . | . . . Propulsion 7 | 2 8 10 Utility 3 | . 3 6 Weapon . | . . 1 Tool/Special . | . . . Unused Backups 13 | . . 13 Power . | . . . Propulsion 8 | . . 8 Utility 4 | . . 4 Weapon 1 | . . 1 Tool/Special . | . . . Average Slot Usage (%) 99 | . 99 98 Engine 13 | . 13 13 Treads 14 | . 14 16 Wheel 13 | . 13 11 Device 13 | . 14 11 Storage 14 | . 14 14 Energy Gun 1 | . 1 . Ballistic Gun 26 | . 26 27 Peak Build Rating 11 | 7 11 11 Average Rating 9 | 5 9 10 On Entrance 6 | . 7 11 Naked Turns . | . . . Heaviest Build 88 | 11 88 88 Greatest Support 20 | 20 20 16 Greatest Overweight (x) 5 | 2 5 5 Average Overweight (x) 3 | . 3 5 Largest Inventory Capacity 25 | 8 25 25 Average Capacity 20 | 7 20 25 Most Carried 20 | 7 20 20 Average Carried 12 | 4 12 19 Final Capacity 25 | 8 25 25 Final Carried 20 | 7 20 17 Class Distribution -------------------- 100% | Mutant Dominant Class ---------------- Mutant | -10/Materials Mutant | -10/Subcaves Resources | -11 -10 -10 ----------- Run | Yrd Mat Sub Matter Collected 648 | 279 368 1 Remotely . | . . . Salvage Created 975 | 166 764 45 Parts 73 | 10 60 3 Haulers Intercepted 2 | . 2 . Recyclers Shooed 2 | . 2 . Parts Field Recycled . | . . . Retrieved Matter . | . . . Parts Self-Destructed 4 | . . 4 Prevented . | . . . Kills | -11 -10 -10 ------- Run | Yrd Mat Sub Combat Hostiles Destroyed 16 | . 15 1 Guns 16 | . 15 1 Classes Destroyed 10 | 3 6 1 Worker 4 | 2 2 . Builder 1 | . 1 . Tunneler 3 | 2 1 . Hauler 2 | . 2 . Recycler 2 | 1 1 . Operator 2 | . 2 . Watcher 2 | . 2 . Swarmer 6 | . 6 . Grunt 9 | . 9 . Subdweller 1 | . . 1 Best Kill Streak 3 | 3 3 1 Combat Bots Only 3 | . 3 1 Max Kills in Single Turn 1 | 1 1 1 Gunslinging . | . . . Exploded . | . . . Melee . | . . . Uniques/NPCs Destroyed . | . . . Combat | -11 -10 -10 -------- Run | Yrd Mat Sub Hostile Shots Fired 113 | . 79 34 Missed 27 | . 17 10 Hits 86 | . 62 24 Projectile 86 | . 62 24 Critical Strikes 2 | . 1 1 Damage Taken 1195 | . 690 505 Core 269 | . 167 102 Absorbed by Shields . | . . . Core Remaining (%) 100 | 100 . . Volleys Fired 157 | 9 135 13 Largest 2 | 2 2 2 Hottest 60 | 60 60 40 Shots Fired 306 | 18 264 24 Gun 306 | 18 264 24 Cannon . | . . . Launcher . | . . . Special . | . . . Kinetic 279 | 9 246 24 Thermal 27 | 9 18 . Explosive . | . . . Electromagnetic . | . . . Robot Hit Streak 22 | 12 22 13 Robot Miss Streak 5 | 1 5 1 Penetration Max . | . . . Secondary Targets . | . . . Shots Hit Robots 198 | 16 160 22 Core Hits 78 | 8 65 5 Critical Kills 1 | . 1 . Critical Parts Destroyed 2 | . 1 1 Critical Strikes 3 | . 2 1 Destroy 3 | . 2 1 Melee Attacks . | . . . Impact . | . . . Slashing . | . . . Piercing . | . . . Sneak Attacks . | . . . Combat Hostiles . | . . . Follow-up Attacks . | . . . Damage Inflicted 1624 | 146 1289 189 Guns 1624 | 146 1289 189 Cannons . | . . . Explosions . | . . . Melee . | . . . Ramming . | . . . Kinetic 1404 | 58 1157 189 Thermal 220 | 88 132 . Explosive . | . . . Electromagnetic . | . . . Impact . | . . . Slashing . | . . . Piercing . | . . . Highest Corruption 4 | . 4 4 Average Corruption 3 | . 3 4 Corruption Purged . | . . . Corruption Blocked . | . . . Effects 47 | . 42 5 Message Errors 15 | . 13 2 Matter Fused 10 | . 9 1 Heat Flow Errors 5 | . 4 1 Energy Discharges 5 | . 5 . Parts Rejected 1 | . . 1 Data Loss (minor) 5 | . 5 . Misfires 5 | . 5 . Weapon Failures 1 | . 1 . Overload Shots . | . . . Overflow Damage . | . . . Projectiles . | . . . Explosions . | . . . Melee . | . . . Knockbacks . | . . . Impact . | . . . Kinetic . | . . . Secondary . | . . . Self-Inflicted Damage . | . . . Shots . | . . . Rammed . | . . . Targets Rammed . | . . . Kicked . | . . . Crushed . | . . . Highest Temperature 279 | 40 279 156 Average Temperature 66 | 17 71 96 Received Heat Transfer 390 | . 306 84 Effects 2 | . 2 . Interference 2 | . 2 . Siege Activations . | . . . Martial Activations . | . . . Shielding Activations . | . . . Robots Disrupted . | . . . Combat Hostiles . | . . . Robots Corrupted . | . . . Combat Hostiles . | . . . Parts Fried . | . . . Impact Corruptions . | . . . Robots Melted . | . . . Combat Hostiles . | . . . Parts Melted . | . . . Heat Transferred 500 | 200 300 . Parts Sabotaged . | . . . Parts Stolen . | . . . Parts Stripped . | . . . Power Chain Reactions . | . . . Alert | -11 -10 -10 ------- Run | Yrd Mat Sub Maximum Alert Level . | . . . Low Security (%) 100 | 100 100 . Level 1 . | . . . Level 2 . | . . . Level 3 . | . . . Level 4 . | . . . Level 5 . | . . . High Security . | . . . Max Security . | . . . Peak Influence 77 | 10 77 . Initial . | . . . Average 19 | 1 20 . Influence Increases 489 | 25 464 . Destroy 0b10 Robot/C 300 | . 300 . Destroy 0b10 Robot/NC 80 | 25 55 . Destroy Leader 88 | . 88 . Successful Hack 6 | . 6 . Lose Combat Pursuer 15 | . 15 . Influence Decreases 489 | 25 393 71 Entered New Map 35 | . . 35 Time Decay 414 | 25 353 36 Lost Part 40 | . 40 . Squads Dispatched 4 | . 4 . Investigation 1 | . 1 . Extermination . | . . . Reinforcement 3 | . 3 . Assault . | . . . Garrison . | . . . Intercept . | . . . Searches Triggered . | . . . Construction Impeded . | . . . Haulers Reinforced . | . . . Active Scanning Responses . | . . . Cargo Convoy Interrupts . | . . . Stealth | -11 -10 -10 --------- Run | Yrd Mat Sub Distress Signals . | . . . Communications Jammed . | . . . Distress Signals . | . . . Times Spotted 46 | . 43 3 Peak Tracking Total 3 | . 3 3 Tactical Retreats 1 | . 1 . Traps | -11 -10 -10 ------- Run | Yrd Mat Sub Traps Triggered 3 | . 3 . Indirectly . | . . . Trap Hack Attempts . | . . . Triggered . | . . . Disarmed . | . . . Reprogrammed . | . . . Reused . | . . . Traps Extracted . | . . . Installed . | . . . Triggered . | . . . Machines | -11 -10 -10 ---------- Run | Yrd Mat Sub Machines Disabled . | . . . Max in Single Turn . | . . . Machines Repaired . | . . . Machines Dismantled . | . . . Machines Sabotaged . | . . . Overloaded Fab Kills . | . . . Hacking | -11 -10 -10 --------- Run | Yrd Mat Sub Machines Accessed 6 | . 6 . Terminals 4 | . 4 . Fabricators . | . . . Repair Stations . | . . . Recycling Units 2 | . 2 . Scanalyzers . | . . . Garrison Access . | . . . Total Hacks 17 | . 17 . Successful 6 | . 6 . Failed 11 | . 11 . Catastrophic 2 | . 2 . Database Lockouts . | . . . Manual 11 | . 11 . Terminals 11 | . 11 . Fabricators . | . . . Repair Stations . | . . . Recycling Units 6 | . 6 . Scanalyzers . | . . . Garrison Access . | . . . Terminal Hacks 1 | . 1 . Terminal Index 1 | . 1 . Fabricator Hacks . | . . . Repair Station Hacks . | . . . Recycling Unit Hacks 1 | . 1 . Retrieve Components 1 | . 1 . Scanalyzer . | . . . Garrison Access Hacks . | . . . Unauthorized Hacks 4 | . 4 . Terminals 4 | . 4 . Botnet 1 | . 1 . Skim 3 | . 3 . Fabricators . | . . . Repair Stations . | . . . Recycling Units . | . . . Scanalyzers . | . . . Garrison Access . | . . . Data Cores Recovered . | . . . Used . | . . . Hacking Detections 6 | . 6 . Full Trace Events . | . . . Feedback Events . | . . . Feedback Blocked . | . . . Robot Schematics Acquired . | . . . Robots Built . | . . . Authchips . | . . . Time . | . . . Total Robot Build Rating . | . . . Part Schematics Acquired . | . . . Parts Built . | . . . Authchips . | . . . Time . | . . . Total Part Build Rating . | . . . Parts Repaired . | . . . Time . | . . . Parts Recycled . | . . . Recycled Matter . | . . . Retrieved Matter . | . . . Retrieved Components 2 | . 2 . Parts Scanalyzed . | . . . Part Schematics Acquired . | . . . Parts Damaged . | . . . Bothacking | -11 -10 -10 ------------ Run | Yrd Mat Sub Used RIF Installer . | . . . Robots Hacked . | . . . Non-combat . | . . . Combat . | . . . Robot Hacks Applied . | . . . Relay Couplers Released . | . . . Fabnet Peak Effective % . | . . . Robots Rewired . | . . . Allies Hacked . | . . . Hacks Repelled . | . . . Allies | -11 -10 -10 -------- Run | Yrd Mat Sub Total Allies . | . . . Largest Group . | . . . Highest-Rated Group . | . . . Highest-Rated Ally . | . . . Total Orders . | . . . Ally Attacks . | . . . Total Damage . | . . . Kills . | . . . Allies Corrupted . | . . . Allies Melted . | . . . Intel | -11 -10 -10 ------- Run | Yrd Mat Sub Active Infowar (turns) 2331 | 45 2128 158 Terrain 1897 | . 1739 158 Seismic 434 | 45 389 . Robot Analysis Total . | . . . Derelict Logs Recovered . | . . . Drone Launches . | . . . Drone Recoveries . | . . . Exploration | -11 -10 -10 ------------- Run | Yrd Mat Sub Turns Passed 2456 | 125 2129 202 Spaces Moved 1191 | 74 1027 90 Core 8 | 7 1 . Treads 136 | 20 116 . Legs . | . . . Wheels 1047 | 47 910 90 Hover . | . . . Flight . | . . . Fastest Speed 50 | 50 95 175 Average Speed 159 | 111 161 175 Slowest Speed 480 | 160 480 175 Overloaded Moves . | . . . Propulsion Burnouts . | . . . Robots Hopped . | . . . Potential Cave-ins . | . . . Cave-ins Triggered . | . . . Exploration Rate (%) 38 | 5 98 11 Regions Visited 2 Branch Regions 1 Pre-discovered Areas . | . . . Known Exits Taken . | . . . Unknown Exits Taken 2 | 1 1 . Scrap Searched . | . . . Spaces Dug . | . . . Terrain Destroyed . | . . . Melee . | . . . Projectile . | . . . AOE . | . . . Terrain Rammed . | . . . Walls Destroyed . | . . . Machines Disabled . | . . . Actions | -11 -10 -10 --------- Run | Yrd Mat Sub Total 1490 | 96 1280 114 Wait 98 | . 94 4 Move 1189 | 73 1026 90 Hop . | . . . Pick Up 24 | 7 17 . Fast Attach 8 | 7 . 1 Attach 8 | . 5 3 Detach . | . . . Swap 6 | . 3 3 Drop . | . . . Fire 157 | 9 135 13 Melee . | . . . Ram . | . . . Kick . | . . . Crush . | . . . Escape Stasis . | . . . Rewire . | . . . Trap . | . . . Miscellaneous . | . . . Route ------- -11/Scrapyard -10/Materials (discovered 5 exits: [*Mat x3] / [*Min] / [*Sub]) -10/Subcaves History --------- Turn | Location | Event 23 | -11/Scrapyard | Discovered new exit (range 15) 126 | -11/Scrapyard | Entered Materials 317 | -10/Materials | Build established: Mutant 394 | -10/Materials | Lost 3 parts (2n1w) 438 | -10/Materials | Discovered new exit (range 9) 638 | -10/Materials | Discovered new exit (range 8) 641 | -10/Materials | Discovered new exit (range 16) 873 | -10/Materials | Discovered new exit (range 8) 1099 | -10/Materials | Discovered new exit (range 3) 1930 | -10/Materials | Core integrity fell below 50% 2255 | -10/Materials | Entered Subcaves 2256 | -10/Subcaves | Shifting Twisted Machinery released Sub. Laser 2256 | -10/Subcaves | Approached by a straggling Scientist 2408 | -10/Subcaves | Ambushed by Subdwellers from Twisted Machinery 2430 | -10/Subcaves | Core integrity fell below 20% 2457 | -10/Subcaves | Destroyed by FM-M84(R) with Subdweller Laser Last Messages --------------- 02379_ System corrupted: Matter fused (-5). 02400_ LT2ZC&95G0XS0T76WCI5OPEO =G>BFQNC8DZ N XX-2LN(c): "I think it's somewhere north of here" 02408_ QU-SGU(R) emerges from the Twisted Machinery. 02429_ Lgt. Assault Rifle destroyed. 02431_ Lgt. Treads destroyed. 02433_ QU-SGU(R) suffers critical hit (Destroy). 02433_ Destroyed Sub. Laser. 02435_ Lgt. Armor Plating destroyed. 02442_ YR-RO3(R) destroyed. 02444_ Subatomizers dissect the Disposable Heat Sink. 02449_ Ion Engine destroyed. 02454_ FM-M84(R) affixes Scrap Shield Fragment to Scrap Shield. 02455_ Lgt. Assault Rifle destroyed. 02457_ System corrupted: Lgt. Treads rejected. 02457_ Acquired Lgt. Treads. Map ----- +----------------------------------------------------+ | ??????????????????????????????????????????????? | | ??????????????????????????????????????????????? | | ??????????????????????????????????????????????? | | ??????????????????????????????????????????????? | | ??????????????????????????????????????????????? | | ??????????????????????????????????????????????? | | ??????????????????????????????????????????????? | | ??????????????????????????????????????????????? | | ??????????????????????????????????????????????? | | ??????????????????????????????????????????????? | | ????????????????????????#?????????????????????? | | ????????????????????????#?????????????????????? | | ??????????????????????????????????????????????? | | ?????????????????????#"???????????????????????? | | ?????????????????????""?"?????????????????????? | | ????????????????#????""" ?????????????????????? | | ????????????#???#"??? ""#?????????????????????? | | ????????????#???# ??# "#?????????????????????? | | ????????????????# ### "##????????????????????? | | ?????????????????? #???????????? ????????? | | ??????????????????? #?? ##??????????###???? | | ???????????????????? ###""#"???????? ##?? | | ?????????????????????# """""""" ???? #?? | | ???????????????#?????# ![" "" """"??? #?? | | ?????????????????????##%R """" ### | | ?????????????????????#@= "##### % | | ???????????#?????#???# "##??## """ ? | | ????????????????#????# ""##?## %""" ??# # | | ?????????????????????# "" #??# """ #??# #? | | ????????????????????## "" ##??# #?## #? | | ????????????????????# " #??#?# %#?## ## | | ???????????????????## #????# #?## % | | ????????????????????# c ######## ### | | ???????????????????## # # # # | | ????????????????????## % | | ??????????????????#??## ## | | ??????????????????????########### ### ### | | ?????????????????????????????#??####?## #?? | | ??????????????????#?????????????#?????### #?? | | ????????????????????????????????#???????#####?? | | ?????????????????????#????????????##??????????? | | ???????????????#?????#????????????????????????? | | ??????????????????????????????#?????????????#?? | | ???????????????????????????#???????#??????????? | | ??????????????????????????????????????????????? | | ???????????????????????????#??????????????????? | | ???????????????????????????????##?????????????? | | ?????????????????????????????????????????????#? | | ?????????????????#????????????????????????????? | | ??????????????????????????????????????????????? | +----------------------------------------------------+ Best States ------------- Heat Dissipation 25 Energy Generation 10 Energy Capacity 250 Matter Stores 300 Matter Capacity 300 Sight Range 16 Terrain Scan Range 16 Terrain Scan Density 10 Armor Coverage 150 Utility Shielding 33 Evasion (%) 44 Recoil Reduction 2 Item Schematics ----------------- None Robot Schematics ------------------ None Fabricated ------------ Nothing Repaired ---------- Nothing Alien Tech Used ----------------- None Achievements -------------- None Challenges ------------ None Game ------ Seed RegenerativeSwordBarrier Manual? 0 Play Time 00:09:57 Cumulative 138.8 hours Start 2025.08.23 @ 04:44:06 End 2025.08.23 @ 05:11:06 Sessions 1 Manual Loads 0 Difficulty Rogue Special Mode None Game No. 61 Rogue 61 Adventurer 0 Explorer 0 Win Type - Total 3 Types 1/0/2/0/0/0/0/0/0/0 Lore% 75 Gallery% 63 Achievement% 78 Wizard Run 0 Options --------- Layout 2 ASCII 0 Keyboard 1 Movement Vi Keybinds 0 Fullscreen 1 Font 28/SwanstonBold Map View 50x52 Zoom Use 0% Tactical HUD 1 Map Filters NONE Filters NONE Steam 1 RUN: 7a6ef437-654c-40c5-8485-282e04a0d50f